Cogmind - Beta 9.3 @@@ ROGUE MODE // 2019.12.30 @ 19:21:22 // Winter2019/RPGLIKE Player: XenoFiery Result: Destroyed by as-32080 with Assembled Heavy Rifle Performance ------------- Evolutions (0) 0 Regions Visited (4) 800 Robots Destroyed (16) 80 Value Destroyed (243) 243 Prototype IDs (0) 0 Alien Tech Used (0) 0 Bonus (0) 0 TOTAL SCORE: 1123 Bonus ------- None Cogmind --------- Core Integrity 0/600 Matter 300/300 Energy 428/430 System Corruption 0% Temperature Cool (79) Movement Flying (197) Ox2 Location -9/Mines Parts ------- > --- POWER (2) -------- Improved Ion Engine Improved Ion Engine > --- PROPULSION (2) --- Flight Unit Flight Unit > --- UTILITY (3) ------ Improved Terrain Scanner Seismic Analyzer > --- WEAPON (2) ------- Medium Laser Light Assault Rifle > --- INVENTORY (0) ---- (None) Peak State ------------ > --- POWER ------------ Improved Ion Engine Improved Ion Engine > --- PROPULSION ------- Flight Unit Flight Unit > --- UTILITY ---------- Improved Terrain Scanner Seismic Analyzer > --- WEAPON ----------- Medium Laser Light Assault Rifle > --- INVENTORY -------- (None) [Rating: 11] Favorites ----------- Power Improved Ion Engine Engine Improved Ion Engine Propulsion Compact Wheel Wheel Compact Wheel Flight Unit Flight Unit Utility Seismic Analyzer Device Improved Terrain Scanner Processor Seismic Analyzer Weapon Medium Laser Energy Gun Medium Laser Ballistic Gun Light Assault Rifle Build | -11 -10 -10 -10 -9 ------- Run | Scr Mat Min Exi Min Slots Evolved 5 | 3 . . . 2 Power 1 | 1 . . . . Propulsion 1 | 1 . . . . Utility 2 | 1 . . . 1 Weapon 1 | . . . . 1 Parts Attached 14 | 7 2 . 2 3 Power 6 | 2 2 . 2 . Engine 6 | 2 2 . 2 . Core . | . . . . . Reactor . | . . . . . Propulsion 4 | 2 . . . 2 Treads . | . . . . . Leg . | . . . . . Wheel 2 | 2 . . . . Hover . | . . . . . Flight 2 | . . . . 2 Utility 2 | 2 . . . . Device 1 | 1 . . . . Storage . | . . . . . Processor 1 | 1 . . . . Hackware . | . . . . . Protection . | . . . . . Artifact . | . . . . . Weapon 2 | 1 . . . 1 Energy Gun 1 | 1 . . . . Energy Cannon . | . . . . . Ballistic Gun 1 | . . . . 1 Ballistic Cannon . | . . . . . Launcher . | . . . . . Special Weapon . | . . . . . Impact Weapon . | . . . . . Slashing Weapon . | . . . . . Piercing Weapon . | . . . . . Special Melee Weapon . | . . . . . Unidentified Prototypes . | . . . . . Parts Lost . | . . . . . Power . | . . . . . Propulsion . | . . . . . Utility . | . . . . . Weapon . | . . . . . Highest Loss Streak . | . . . . . Average Slot Usage (%) 98 | . 100 100 99 80 Engine 27 | . 28 28 27 22 Wheel 26 | . 28 28 28 10 Device 13 | . 14 14 14 11 Processor 13 | . 14 14 14 11 Energy Gun 13 | . 14 14 14 11 Naked Turns . | . . . . . Heaviest Build 18 | 11 17 17 17 18 Greatest Support 32 | 32 32 32 32 32 Greatest Overweight (x) 5 | . . . . 5 Average Overweight (x) . | . . . . . Largest Inventory Capacity . | . . . . . Average Capacity . | . . . . . Most Carried . | . . . . . Average Carried . | . . . . . Final Capacity . | . . . . . Final Carried . | . . . . . Class Distribution -------------------- 96% | Mutant 3% | Scavenger-Mutant Dominant Class ---------------- Mutant | -10/Materials Mutant | -10/Mines Mutant | -10/Exiles Scavenger-Mutant | -9/Mines Resources | -11 -10 -10 -10 -9 ----------- Run | Scr Mat Min Exi Min Matter Collected 337 | 270 . 16 . 51 Remotely . | . . . . . Salvage Created 398 | 197 . 130 . 71 Parts 29 | 13 . 5 . 11 Haulers Intercepted . | . . . . . Recyclers Shooed . | . . . . . Parts Field Recycled . | . . . . . Retrieved Matter . | . . . . . Parts Self-Destructed . | . . . . . Prevented . | . . . . . Kills | -11 -10 -10 -10 -9 ------- Run | Scr Mat Min Exi Min Combat Hostiles Destroyed 8 | . . 4 . 4 Guns 8 | . . 4 . 4 Classes Destroyed 6 | 3 . 1 . 2 Worker 2 | 2 . . . . Builder 1 | . . . . 1 Tunneler 4 | 4 . . . . Recycler 1 | 1 . . . . Swarmer 4 | . . . . 4 Grunt 4 | . . 4 . . Best Kill Streak 4 | 3 . 2 . 4 Combat Bots Only 4 | . . 2 . 4 Max Kills in Single Turn 1 | 1 . 1 . 1 Gunslinging . | . . . . . Exploded . | . . . . . Melee . | . . . . . Uniques/NPCs Destroyed . | . . . . . Combat | -11 -10 -10 -10 -9 -------- Run | Scr Mat Min Exi Min Damage Taken 730 | . . 315 . 415 Core 600 | . . 265 . 335 Absorbed by Shields . | . . . . . Redirected to Core 426 | . . 157 . 269 Core Remaining (%) 100 | 100 . . . . Volleys Fired 81 | 22 1 26 19 13 Largest 2 | 1 1 1 1 2 Hottest 70 | 50 50 50 50 70 Shots Fired 82 | 22 1 26 19 14 Gun 82 | 22 1 26 19 14 Cannon . | . . . . . Launcher . | . . . . . Special . | . . . . . Kinetic 1 | . . . . 1 Thermal 81 | 22 1 26 19 13 Explosive . | . . . . . Electromagnetic . | . . . . . Robot Hit Streak 8 | 4 . 8 . 5 Robot Miss Streak 2 | 2 . 2 . 2 Penetration Max . | . . . . . Secondary Targets 1 | . . . . 1 Max Gunslinging Chain 1 | . . . . 1 Shots Hit Robots 42 | 16 . 18 . 8 Core Hits 23 | 8 . 10 . 5 Critical Hits . | . . . . . Critical Kills . | . . . . . Critical Parts Destroyed . | . . . . . Melee Attacks . | . . . . . Impact . | . . . . . Slashing . | . . . . . Piercing . | . . . . . Sneak Attacks . | . . . . . Combat Hostiles . | . . . . . Follow-up Attacks . | . . . . . Damage Inflicted 628 | 239 . 270 . 119 Guns 582 | 239 . 224 . 119 Cannons . | . . . . . Explosions . | . . . . . Melee . | . . . . . Ramming 46 | . . 46 . . Kinetic 6 | . . . . 6 Thermal 576 | 239 . 224 . 113 Explosive . | . . . . . Electromagnetic . | . . . . . Impact . | . . . . . Slashing . | . . . . . Piercing . | . . . . . Highest Corruption . | . . . . . Average Corruption . | . . . . . Corruption Purged . | . . . . . Overload Shots . | . . . . . Overflow Damage . | . . . . . Projectiles . | . . . . . Explosions . | . . . . . Melee . | . . . . . Knockbacks . | . . . . . Impact . | . . . . . Kinetic . | . . . . . Secondary . | . . . . . Self-Inflicted Damage 23 | . . 23 . . Shots . | . . . . . Rammed 4 | . . 4 . . Targets Rammed 4 | . . 4 . . Kicked . | . . . . . Crushed . | . . . . . Highest Temperature 348 | 120 24 302 348 240 Average Temperature 103 | 47 15 113 147 100 Received Heat Transfer 222 | . . 162 . 60 Effects 1 | . . . 1 . Shutdowns 1 | . . . 1 . Siege Activations . | . . . . . Robots Corrupted . | . . . . . Combat Hostiles . | . . . . . Parts Fried . | . . . . . Impact Corruptions . | . . . . . Robots Melted . | . . . . . Combat Hostiles . | . . . . . Parts Melted 7 | 5 . 2 . . Heat Transferred 1702 | 703 . 666 . 333 Parts Sabotaged . | . . . . . Parts Stolen . | . . . . . Parts Stripped . | . . . . . Power Chain Reactions . | . . . . . Missiles Intercepted . | . . . . . Alert | -11 -10 -10 -10 -9 ------- Run | Scr Mat Min Exi Min Peak Influence 110 | 35 24 109 . 110 Average Influence 33 | 13 23 39 . 55 Maximum Alert Level . | . . . . . Low Security (%) 100 | 100 100 100 . 100 Level 1 . | . . . . . Level 2 . | . . . . . Level 3 . | . . . . . Level 4 . | . . . . . Level 5 . | . . . . . High Security . | . . . . . Max Security . | . . . . . Squads Dispatched . | . . . . . Investigation . | . . . . . Extermination . | . . . . . Reinforcement . | . . . . . Assault . | . . . . . Garrison . | . . . . . Intercept . | . . . . . Construction Impeded . | . . . . . Haulers Reinforced . | . . . . . Stealth | -11 -10 -10 -10 -9 --------- Run | Scr Mat Min Exi Min Distress Signals 1 | . 1 . . . Communications Jammed . | . . . . . Distress Signals . | . . . . . Times Spotted 24 | . . 4 . 20 Peak Tracking Total 16 | . . 2 . 16 Tactical Retreats . | . . . . . Traps | -11 -10 -10 -10 -9 ------- Run | Scr Mat Min Exi Min Traps Triggered . | . . . . . Indirectly . | . . . . . Trap Hack Attempts . | . . . . . Triggered . | . . . . . Disarmed . | . . . . . Reprogrammed . | . . . . . Reused . | . . . . . Traps Extracted . | . . . . . Installed . | . . . . . Triggered . | . . . . . Machines | -11 -10 -10 -10 -9 ---------- Run | Scr Mat Min Exi Min Machines Disabled . | . . . . . Max in Single Turn . | . . . . . Machines Sabotaged . | . . . . . Garrisons Compromised . | . . . . . Overloaded Fab Kills . | . . . . . Fab Network Shutdowns . | . . . . . Hacking | -11 -10 -10 -10 -9 --------- Run | Scr Mat Min Exi Min Machines Accessed 6 | . 2 . 4 . Terminals 2 | . 2 . . . Fabricators . | . . . . . Repair Stations . | . . . . . Recycling Units . | . . . . . Scanalyzers . | . . . . . Garrison Access . | . . . . . Total Hacks 54 | . 6 . 48 . Successful 54 | . 6 . 48 . Failed . | . . . . . Catastrophic . | . . . . . Database Lockouts . | . . . . . Manual 2 | . . . 2 . Terminals 6 | . 6 . . . Fabricators . | . . . . . Repair Stations . | . . . . . Recycling Units . | . . . . . Scanalyzers . | . . . . . Garrison Access . | . . . . . Terminal Hacks 54 | . 6 . 48 . Record 51 | . 3 . 48 . Alert Level 1 | . 1 . . . Locate Traps 1 | . 1 . . . Hauler Manifests 1 | . 1 . . . Fabricator Hacks . | . . . . . Repair Station Hacks . | . . . . . Recycling Unit Hacks . | . . . . . Scanalyzer . | . . . . . Garrison Access Hacks . | . . . . . Unauthorized Hacks . | . . . . . Terminals . | . . . . . Fabricators . | . . . . . Repair Stations . | . . . . . Recycling Units . | . . . . . Scanalyzers . | . . . . . Garrison Access . | . . . . . Data Cores Recovered . | . . . . . Used . | . . . . . Hacking Detections 1 | . 1 . . . Full Trace Events . | . . . . . Feedback Events . | . . . . . Feedback Blocked . | . . . . . Robot Schematics Acquired . | . . . . . Robots Built . | . . . . . Matter . | . . . . . Time . | . . . . . Total Robot Build Rating . | . . . . . Part Schematics Acquired . | . . . . . Parts Built . | . . . . . Matter . | . . . . . Time . | . . . . . Total Part Build Rating . | . . . . . Parts Repaired . | . . . . . Time . | . . . . . Parts Recycled . | . . . . . Recycled Matter . | . . . . . Retrieved Matter . | . . . . . Retrieved Components . | . . . . . Parts Scanalyzed . | . . . . . Part Schematics Acquired . | . . . . . Parts Damaged . | . . . . . Bothacking | -11 -10 -10 -10 -9 ------------ Run | Scr Mat Min Exi Min Used RIF Installer . | . . . . . Robots Hacked . | . . . . . Non-combat . | . . . . . Combat . | . . . . . Robot Hacks Applied . | . . . . . Relay Couplers Released . | . . . . . Robots Rewired . | . . . . . Allies Hacked . | . . . . . Hacks Repelled . | . . . . . Allies | -11 -10 -10 -10 -9 -------- Run | Scr Mat Min Exi Min Total Allies . | . . . . . Largest Group . | . . . . . Highest-Rated Group . | . . . . . Highest-Rated Ally . | . . . . . Total Orders . | . . . . . Ally Attacks . | . . . . . Total Damage . | . . . . . Kills . | . . . . . Allies Corrupted . | . . . . . Allies Melted . | . . . . . Intel | -11 -10 -10 -10 -9 ------- Run | Scr Mat Min Exi Min Robot Analysis Total . | . . . . . Derelict Logs Recovered . | . . . . . Drone Launches . | . . . . . Drone Recoveries . | . . . . . Exploration | -11 -10 -10 -10 -9 ------------- Run | Scr Mat Min Exi Min Turns Passed 1700 | 177 147 306 941 129 Spaces Moved 1477 | 126 142 251 892 66 Core 6 | 5 . . . 1 Treads . | . . . . . Legs . | . . . . . Wheels 1442 | 121 142 251 892 36 Hover . | . . . . . Flight 29 | . . . . 29 Fastest Speed 50 | 50 100 100 100 100 Average Speed 101 | 98 100 100 100 148 Slowest Speed 360 | 100 100 100 100 360 Overloaded Moves . | . . . . . Propulsion Burnouts . | . . . . . Robots Hopped . | . . . . . Cave-ins Triggered . | . . . . . Exploration Rate (%) 36 | 7 18 38 94 27 Regions Visited 4 Branch Regions 3 Pre-discovered Areas 2 | . . 1 1 . Known Exits Taken . | . . . . . Unknown Exits Taken 4 | 1 1 1 1 . Scrap Searched . | . . . . . Spaces Dug . | . . . . . Terrain Destroyed . | . . . . . Melee . | . . . . . Projectile . | . . . . . AOE . | . . . . . Actions | -11 -10 -10 -10 -9 --------- Run | Scr Mat Min Exi Min Total 1586 | 154 146 280 922 84 Wait 8 | . . . 8 . Move 1473 | 125 141 250 891 66 Hop . | . . . . . Pick Up . | . . . . . Fast Attach 14 | 7 2 . 2 3 Attach . | . . . . . Detach . | . . . . . Swap . | . . . . . Drop 6 | . 2 . 2 2 Fire 81 | 22 1 26 19 13 Melee . | . . . . . Ram 4 | . . 4 . . Kick . | . . . . . Crush . | . . . . . Escape Stasis . | . . . . . Rewire . | . . . . . Trap . | . . . . . Miscellaneous . | . . . . . Route ------- -11/Scrapyard -10/Materials -10/Mines (discovered 2 exits: [Mat] / *Exi) -10/Exiles (discovered 2 exits: [*Min x2]) -9/Mines History --------- Turn | Location | Event 21 | -11/Scrapyard | Discovered new exit (range 15) 36 | -11/Scrapyard | Upgraded with Power slot (x1) 36 | -11/Scrapyard | Upgraded with Propulsion slot (x1) 36 | -11/Scrapyard | Upgraded with Utility slot (x1) 178 | -11/Scrapyard | Entered Materials 214 | -10/Materials | Discovered new exit (range 14) 298 | -10/Materials | Met 8R-AWN 304 | -10/Materials | Build established: Mutant 325 | -10/Materials | Entered Mines 326 | -10/Mines | Learned location of Storage (-7) 326 | -10/Mines | Followed 8R-AWN into the Mines 347 | -10/Mines | Discovered new exit (range 10) 627 | -10/Mines | Discovered new exit (range 5) 631 | -10/Mines | Entered Exiles 664 | -10/Exiles | Discovered new exit (range 15) 693 | -10/Exiles | Welcomed by 8R-AWN 713 | -10/Exiles | Met EX-HEX 821 | -10/Exiles | Met EX-DEC 849 | -10/Exiles | Learned location of Zion (-7) 902 | -10/Exiles | Discovered new exit (range 16) 966 | -10/Exiles | Visited The Gauntlet 1127 | -10/Exiles | Met EX-BIN 1572 | -10/Exiles | Entered Mines 1574 | -9/Mines | Reached level 2 1579 | -9/Mines | Upgraded with Utility slot (x1) 1579 | -9/Mines | Upgraded with Weapon slot (x1) 1615 | -9/Mines | Core integrity fell below 50% 1685 | -9/Mines | Assembled infested the area 1690 | -9/Mines | Assisted by a Guerilla fighting off Assembled 1698 | -9/Mines | Core integrity fell below 20% 1701 | -9/Mines | Destroyed by as-32080 with Assembled Heavy Rifle Last Messages --------------- 01685_ ALERT: Infestation in the mines, dispatching Demolisher response squad. 01686_ K-01 Serf destroyed. 01690_ A derelict emerges from the shadows: "You need to get out of here! I've been tracking a group of Assembled to figure out where they're coming from, and they're closing on this area, come on!" 01690_ 12-NVI(h): "I'll hold them off! Go on ahead or try to find another way!" 01690_ HV Slug penetrates Wall. 01692_ HV Slug penetrates as-04568. 01692_ as-04568 suffers critical hit. 01692_ as-04568 destroyed. 01695_ HV Slug penetrates Wall. 01696_ U-05 Engineer destroyed. 01696_ Switching to secondary target: as-86749. 01697_ Knocked back. 01699_ Acquired 1 matter. 01701_ HV Slug penetrates as-98845. 01701_ as-98845 suffers critical hit. 01701_ as-98845 destroyed. Map ----- +----------------------------------------------------+ | ?????????????????????????????????????????????????? | | ?????????????????????????????????????????????????? | | ?????????????????????????????????????????????????? | | ?????????????????????????????????????????????????? | | ?????????????????????????????????????????????????? | | ?????????????????????????????????????????????????? | | ?????????????????????????????????????????????????? | | ?????????????????????????????????????????????????? | | ?????????????????????????????????????????????????? | | ???????????????????????? ?????????????????????? | | ???????????????????????? ?????????????????????? | | ???????????????????????? ?????????????????????? | | ?????????????????? ???## ?????????????????????? | | ????????????????? #??## ?????????????????????? | | ?????????????#?#?#????## #?#???????????????????? | | ?????????###?#??##?##### #?#??##???????????????? | | ???????????##?####?##### #?###?????????????????? | | ?????????#?#??###?## ##???###??????????????? | | ??????###?#????#### ###?##????#??????????? | | ??????##?#?######## ####?##?????????????? | | ? ?? ??############ ####?#???????????? | | ??? ## ########### #?##?#?#????????? | | ?#? ###?####### ###?#???#???????? | | #?#? ########### #####???????????? | | ??####?# ########## ##?????#???????? | | ??##?#### ## ####t @ ;##?#??????????? | | #?######### ## !%! a###?##?????????? | | ??########## h a a## #?#?????????? | | ?############# !aa$aa %!%???????? | | #?############# ### % a % ?????? | | ?############## ###### a #;## ??????? | | ?#?############# ####### ####?? ??????? | | ################### ################ ? ???????? | | #########= ##############?##???????????? | | #####%= = #############?##? ?????????? | | ##### = =###############?#???????????? | | ##### *##################??????????????? | | " """ """ ##### #### #######??????????????? | | " """ """ ##### #######?###??????????? | | " """ """ #### """ #?#####??????????????? | | ########### """ ######?##????????????? | | """ #?######### """ #####????????????????? | | """ ########### ? #####????????????????? | | """ #######################????????????????? | | ###########?########?##????????????????? | | ################?##############??????????????????? | | ##???###############?###?#####???????????????????? | | #?##?#??##?##################????????????????????? | | ##?#?###?###################?????????????????????? | | #??###??###?######?###?###???????????????????????? | +----------------------------------------------------+ Best States ------------- Heat Dissipation 25 Energy Generation 19 Energy Capacity 430 Matter Stores 300 Matter Capacity 300 Sight Range 17 Robot Scan Range 4 Terrain Scan Range 16 Terrain Scan Density 360 Evasion (%) 40 Offensive Hacking 15 Item Schematics ----------------- None Robot Schematics ------------------ None Fabricated ------------ Nothing Alien Tech Used ----------------- None Achievements -------------- Omniscient Cartographer Tourist Challenges ------------ None RPGLIKE | -11 -10 -10 -10 -9 --------- Run | Scr Mat Min Exi Min Levels Raised 1 | . . . . 1 XP Earned 5150 | 3000 . 1000 200 950 XP Spent 4435 | 2900 . . . 1535 Upgrades 14 | 9 . . . 5 Power Slot 1 | 1 . . . . Propulsion Slot 1 | 1 . . . . Utility Slot 2 | 1 . . . 1 Weapon Slot 1 | . . . . 1 Sight Range 1 | 1 . . . . Sensor Range 2 | 1 . . . 1 Terrain Scan Density 3 | 1 . . . 2 Hack Attack % 3 | 3 . . . . Protomatter Created 102 | . . 87 . 15 Protomatter Decayed 110 | . 46 49 . 15 Game ------ Seed FocalLinkedDoublenader Manual? 0 Play Time 00:24:49 Cumulative 8.1 hours Start 2019.12.30 @ 18:57:15 End 2019.12.30 @ 19:21:22 Sessions 1 Manual Loads 0 Difficulty Rogue Special Mode Winter2019/RPGLIKE Game No. 23 Rogue 23 Adventurer 0 Explorer 0 Win Type - Total 0 Types 0/0/0/0/0/0/0 Lore% 13 Gallery% 12 Achievement% 10 Wizard Run 0 Options --------- ASCII 0 Keyboard 0 Movement Mouse Keybinds 0 Fullscreen 1 Font 18/SmallcapsGlow Map View 76x50 Tactical HUD 1 Map Filters NONE Filters NONE Steam 1 RUN: 4319e521-697c-45c7-8dde-315fe370d45b